[Event "Titled Tuesday Blitz March 21 Early 2023"]
[White "Thiel, Thomas"]
[Black "Dinu, Dumitru-Daniel"]
[WhiteFideId "4615964"]
[BlackFideId "1208403"]
[WhiteElo "2244"]
[BlackElo "2240"]
[Result "0-1"]
[Round "06"]
[TimeControl "180+2"]
[Date "2023.03.21"]
[WhiteClock "0:00:27"]
[BlackClock "0:00:04"]

1. e4 {[%clk 0:03:00]}  c5 {[%clk 0:02:58]} 2. Nc3 {[%clk 0:02:58]}  Nc6 {[%clk 0:02:56]} 3. Bb5 {[%clk 0:02:55]}  Nd4 {[%clk 0:02:55]} 4. Bc4 {[%clk 0:02:55]}  a6 {[%clk 0:02:56]} 5. d3 {[%clk 0:02:49]}  e6 {[%clk 0:02:54]} 6. Nge2 {[%clk 0:02:47]}  b5 {[%clk 0:02:53]} 7. Bb3 {[%clk 0:02:47]}  Nxb3 {[%clk 0:02:52]} 8. axb3 {[%clk 0:02:48]}  Bb7 {[%clk 0:02:52]} 9. O-O {[%clk 0:02:47]}  Nf6 {[%clk 0:02:51]} 10. f4 {[%clk 0:02:46]}  d5 {[%clk 0:02:49]} 11. e5 {[%clk 0:02:46]}  Nd7 {[%clk 0:02:49]} 12. d4 {[%clk 0:02:42]}  cxd4 {[%clk 0:02:47]} 13. Nxd4 {[%clk 0:02:42]}  Bc5 {[%clk 0:02:47]} 14. Be3 {[%clk 0:02:39]}  O-O {[%clk 0:02:46]} 15. Kh1 {[%clk 0:02:39]}  Rc8 {[%clk 0:02:43]} 16. Nce2 {[%clk 0:02:35]}  Bxd4 {[%clk 0:02:35]} 17. Bxd4 {[%clk 0:02:35]}  Nc5 {[%clk 0:02:33]} 18. Bxc5 {[%clk 0:02:32]}  Rxc5 {[%clk 0:02:34]} 19. c3 {[%clk 0:02:31]}  d4 {[%clk 0:02:34]} 20. Qxd4 {[%clk 0:02:25]}  Rd5 {[%clk 0:02:31]} 21. Qg1 {[%clk 0:02:20]}  Rd2 {[%clk 0:02:28]} 22. Rfd1 {[%clk 0:02:19]}  Bxg2+ {[%clk 0:01:58]} 23. Kxg2 {[%clk 0:02:16]}  Rxe2+ {[%clk 0:01:58]} 24. Kf3 {[%clk 0:02:15]}  Rd2 {[%clk 0:01:57]} 25. Rxd2 {[%clk 0:01:43]}  Qxd2 {[%clk 0:01:58]} 26. Qf2 {[%clk 0:01:41]}  Qd5+ {[%clk 0:01:53]} 27. Kg3 {[%clk 0:01:41]}  Ra8 {[%clk 0:01:33]} 28. b4 {[%clk 0:01:39]}  Qd3+ {[%clk 0:01:28]} 29. Qf3 {[%clk 0:01:33]}  Qg6+ {[%clk 0:01:27]} 30. Qg4 {[%clk 0:01:27]}  Qc2 {[%clk 0:01:25]} 31. Qf3 {[%clk 0:01:23]}  Ra7 {[%clk 0:00:41]} 32. Qe3 {[%clk 0:01:20]}  Rd7 {[%clk 0:00:38]} 33. Rxa6 {[%clk 0:01:16]}  Qg6+ {[%clk 0:00:20]} 34. Kf2 {[%clk 0:01:08]}  h5 {[%clk 0:00:17]} 35. Rd6 {[%clk 0:01:07]}  Rc7 {[%clk 0:00:14]} 36. Rd8+ {[%clk 0:00:56]}  Kh7 {[%clk 0:00:13]} 37. Qd3 {[%clk 0:00:57]}  Qxd3 {[%clk 0:00:12]} 38. Rxd3 {[%clk 0:00:58]}  Ra7 {[%clk 0:00:12]} 39. Ke3 {[%clk 0:00:56]}  Kg6 {[%clk 0:00:11]} 40. Ke4 {[%clk 0:00:53]}  Ra2 {[%clk 0:00:10]} 41. Rd2 {[%clk 0:00:53]}  Ra1 {[%clk 0:00:09]} 42. Kd4 {[%clk 0:00:51]}  Kf5 {[%clk 0:00:08]} 43. Kc5 {[%clk 0:00:50]}  Kxf4 {[%clk 0:00:08]} 44. Kxb5 {[%clk 0:00:50]}  Kxe5 {[%clk 0:00:08]} 45. c4 {[%clk 0:00:50]}  f5 {[%clk 0:00:06]} 46. c5 {[%clk 0:00:49]}  Rc1 {[%clk 0:00:06]} 47. c6 {[%clk 0:00:48]}  f4 {[%clk 0:00:06]} 48. Kb6 {[%clk 0:00:48]}  f3 {[%clk 0:00:06]} 49. b5 {[%clk 0:00:48]}  Ke4 {[%clk 0:00:07]} 50. c7 {[%clk 0:00:47]}  Ke3 {[%clk 0:00:06]} 51. Rd6 {[%clk 0:00:45]}  f2 {[%clk 0:00:04]} 52. Rxe6+ {[%clk 0:00:44]}  Kd4 {[%clk 0:00:04]} 53. Rd6+ {[%clk 0:00:43]}  Ke5 {[%clk 0:00:03]} 54. Rd1 {[%clk 0:00:43]}  Rxd1 {[%clk 0:00:03]} 55. c8=Q {[%clk 0:00:42]}  f1=Q {[%clk 0:00:04]} 56. Qe8+ {[%clk 0:00:40]}  Kd4 {[%clk 0:00:04]} 57. Qd7+ {[%clk 0:00:32]}  Ke3 {[%clk 0:00:04]} 58. Qe6+ {[%clk 0:00:32]}  Kd2 {[%clk 0:00:04]} 59. Qd5+ {[%clk 0:00:29]}  Kc1 {[%clk 0:00:04]} 60. Qc5+ {[%clk 0:00:27]}  Kb1 {[%clk 0:00:04]} 0-1


[Site "https://www.chess.com"]

[Event "Titled Tuesday Blitz March 21 Early 2023"]
[White "Clawitter, Craig"]
[Black "Shvedova, Alexandra"]
[WhiteFideId "2023105"]
[BlackFideId "54154782"]
[WhiteElo "2238"]
[BlackElo "2057"]
[Result "0-1"]
[Round "06"]
[TimeControl "180+2"]
[Date "2023.03.21"]
[WhiteClock "0:00:02"]
[BlackClock "0:01:00"]

1. e4 {[%clk 0:03:00]}  c6 {[%clk 0:03:00]} 2. d4 {[%clk 0:02:59]}  d5 {[%clk 0:03:01]} 3. e5 {[%clk 0:03:00]}  c5 {[%clk 0:03:00]} 4. Nf3 {[%clk 0:02:56]}  cxd4 {[%clk 0:02:59]} 5. Qxd4 {[%clk 0:02:57]}  Nc6 {[%clk 0:02:59]} 6. Bb5 {[%clk 0:02:58]}  e6 {[%clk 0:02:57]} 7. c4 {[%clk 0:02:56]}  Ne7 {[%clk 0:02:35]} 8. cxd5 {[%clk 0:02:45]}  Nxd5 {[%clk 0:02:31]} 9. Nc3 {[%clk 0:02:31]}  a6 {[%clk 0:02:21]} 10. Bxc6+ {[%clk 0:02:21]}  bxc6 {[%clk 0:02:21]} 11. O-O {[%clk 0:02:17]}  c5 {[%clk 0:02:15]} 12. Qc4 {[%clk 0:01:54]}  Nxc3 {[%clk 0:02:07]} 13. bxc3 {[%clk 0:01:39]}  Bb7 {[%clk 0:02:07]} 14. Qa4+ {[%clk 0:01:13]}  Qd7 {[%clk 0:02:06]} 15. Qxd7+ {[%clk 0:01:13]}  Kxd7 {[%clk 0:02:07]} 16. Ng5 {[%clk 0:01:13]}  Ke8 {[%clk 0:02:03]} 17. Rb1 {[%clk 0:01:11]}  Bd5 {[%clk 0:02:00]} 18. Be3 {[%clk 0:00:44]}  h6 {[%clk 0:01:58]} 19. Nh3 {[%clk 0:00:44]}  g5 {[%clk 0:01:55]} 20. f4 {[%clk 0:00:40]}  gxf4 {[%clk 0:01:50]} 21. Nxf4 {[%clk 0:00:40]}  Bxa2 {[%clk 0:01:42]} 22. Rb7 {[%clk 0:00:38]}  Be7 {[%clk 0:01:37]} 23. Nh5 {[%clk 0:00:18]}  Rg8 {[%clk 0:01:34]} 24. Rf2 {[%clk 0:00:10]}  Bd5 {[%clk 0:01:30]} 25. Rc7 {[%clk 0:00:10]}  Kd8 {[%clk 0:01:28]} 26. Rxe7 {[%clk 0:00:07]}  Kxe7 {[%clk 0:01:28]} 27. Bxh6 {[%clk 0:00:06]}  a5 {[%clk 0:01:23]} 28. Be3 {[%clk 0:00:06]}  Rac8 {[%clk 0:01:14]} 29. Nf6 {[%clk 0:00:05]}  Rg6 {[%clk 0:01:14]} 30. Rd2 {[%clk 0:00:03]}  Ba8 {[%clk 0:01:09]} 31. Rd7+ {[%clk 0:00:02]}  Kf8 {[%clk 0:01:08]} 32. g3 {[%clk 0:00:02]}  a4 {[%clk 0:01:03]} 33. Ra7 {[%clk 0:00:02]}  Bc6 {[%clk 0:01:00]} 34. Bxc5+ {[%clk 0:00:02]}  Kg7 {[%clk 0:01:00]} 0-1


[Site "https://www.chess.com"]

[Event "Titled Tuesday Blitz March 21 Early 2023"]
[White "Blokhin, Sofia"]
[Black "Vivas Zamora, Fabian Ernesto"]
[WhiteFideId "4508190"]
[BlackFideId "3902480"]
[WhiteElo "1994"]
[BlackElo "2262"]
[Result "1/2-1/2"]
[Round "06"]
[TimeControl "180+2"]
[Date "2023.03.21"]
[WhiteClock "0:00:16"]
[BlackClock "0:00:09"]

1. d4 {[%clk 0:02:56]}  Nf6 {[%clk 0:02:59]} 2. c4 {[%clk 0:02:55]}  g6 {[%clk 0:02:59]} 3. Nc3 {[%clk 0:02:52]}  d5 {[%clk 0:02:59]} 4. cxd5 {[%clk 0:02:47]}  Nxd5 {[%clk 0:03:00]} 5. e4 {[%clk 0:02:41]}  Nxc3 {[%clk 0:03:00]} 6. bxc3 {[%clk 0:02:42]}  Bg7 {[%clk 0:03:01]} 7. Be3 {[%clk 0:02:38]}  c5 {[%clk 0:03:01]} 8. Rc1 {[%clk 0:02:25]}  Qa5 {[%clk 0:02:59]} 9. Qd2 {[%clk 0:02:20]}  cxd4 {[%clk 0:02:55]} 10. cxd4 {[%clk 0:02:19]}  Qxd2+ {[%clk 0:02:55]} 11. Kxd2 {[%clk 0:02:18]}  O-O {[%clk 0:02:56]} 12. Nf3 {[%clk 0:02:14]}  Nc6 {[%clk 0:02:52]} 13. Bb5 {[%clk 0:02:05]}  f5 {[%clk 0:02:48]} 14. exf5 {[%clk 0:01:47]}  Bxf5 {[%clk 0:02:48]} 15. Bxc6 {[%clk 0:01:39]}  bxc6 {[%clk 0:02:49]} 16. Rxc6 {[%clk 0:01:37]}  Rab8 {[%clk 0:02:28]} 17. Rhc1 {[%clk 0:01:18]}  Rb2+ {[%clk 0:02:15]} 18. Ke1 {[%clk 0:01:17]}  Rxa2 {[%clk 0:02:05]} 19. Rc7 {[%clk 0:01:17]}  Bf6 {[%clk 0:01:23]} 20. Bh6 {[%clk 0:01:13]}  Rb8 {[%clk 0:01:19]} 21. Ne5 {[%clk 0:01:04]}  Bxe5 {[%clk 0:00:41]} 22. dxe5 {[%clk 0:01:05]}  Rbb2 {[%clk 0:00:40]} 23. Be3 {[%clk 0:01:01]}  Kf7 {[%clk 0:00:34]} 24. Rxa7 {[%clk 0:00:54]}  Re2+ {[%clk 0:00:20]} 25. Kf1 {[%clk 0:00:48]}  Bd3 {[%clk 0:00:19]} 26. Kg1 {[%clk 0:00:45]}  Rac2 {[%clk 0:00:17]} 27. Raa1 {[%clk 0:00:39]}  Be4 {[%clk 0:00:12]} 28. Rxc2 {[%clk 0:00:36]}  Rxc2 {[%clk 0:00:13]} 29. h3 {[%clk 0:00:31]}  Ke6 {[%clk 0:00:11]} 30. Ra5 {[%clk 0:00:28]}  h5 {[%clk 0:00:10]} 31. Kh2 {[%clk 0:00:29]}  Rb2 {[%clk 0:00:07]} 32. Ra4 {[%clk 0:00:25]}  Bd5 {[%clk 0:00:05]} 33. Ra7 {[%clk 0:00:22]}  Rb7 {[%clk 0:00:03]} 34. Rxb7 {[%clk 0:00:19]}  Bxb7 {[%clk 0:00:03]} 35. f4 {[%clk 0:00:20]}  Kf5 {[%clk 0:00:03]} 36. Kg3 {[%clk 0:00:20]}  Bc6 {[%clk 0:00:02]} 37. Bc5 {[%clk 0:00:19]}  Be4 {[%clk 0:00:02]} 38. Bxe7 {[%clk 0:00:19]}  Bd5 {[%clk 0:00:03]} 39. Bd6 {[%clk 0:00:18]}  Be6 {[%clk 0:00:03]} 40. Bb4 {[%clk 0:00:16]}  Bd5 {[%clk 0:00:03]} 41. Bd2 {[%clk 0:00:16]}  Bc6 {[%clk 0:00:03]} 42. Kf2 {[%clk 0:00:17]}  Bd5 {[%clk 0:00:03]} 43. Ke3 {[%clk 0:00:17]}  Bxg2 {[%clk 0:00:03]} 44. h4 {[%clk 0:00:16]}  Bd5 {[%clk 0:00:03]} 45. Kd4 {[%clk 0:00:16]}  Be6 {[%clk 0:00:04]} 46. Kc5 {[%clk 0:00:17]}  Ba2 {[%clk 0:00:05]} 47. Kd6 {[%clk 0:00:17]}  Be6 {[%clk 0:00:05]} 48. Be3 {[%clk 0:00:17]}  Ba2 {[%clk 0:00:06]} 49. Ke7 {[%clk 0:00:16]}  Be6 {[%clk 0:00:06]} 50. Kf8 {[%clk 0:00:15]}  Ba2 {[%clk 0:00:06]} 51. Kg7 {[%clk 0:00:16]}  Be6 {[%clk 0:00:07]} 52. Kh6 {[%clk 0:00:17]}  Ba2 {[%clk 0:00:07]} 53. Bd4 {[%clk 0:00:16]}  Be6 {[%clk 0:00:08]} 54. Be3 {[%clk 0:00:16]}  Bd5 {[%clk 0:00:08]} 55. Bd2 {[%clk 0:00:16]}  Be6 {[%clk 0:00:09]} 56. Be3 {[%clk 0:00:16]} 1/2-1/2


[Site "https://www.chess.com"]

[Event "Titled Tuesday Blitz March 21 Early 2023"]
[White "Mogirzan, Matei-Valeriu"]
[Black "Ciuffoletti, Paolo"]
[WhiteFideId "1257455"]
[BlackFideId "807630"]
[WhiteElo "1733"]
[BlackElo "2143"]
[Result "0-1"]
[Round "06"]
[TimeControl "180+2"]
[Date "2023.03.21"]
[WhiteClock "0:00:43"]
[BlackClock "0:00:14"]

1. e4 {[%clk 0:03:00]}  c5 {[%clk 0:02:59]} 2. Nf3 {[%clk 0:02:59]}  Nc6 {[%clk 0:02:59]} 3. Bb5 {[%clk 0:02:59]}  e6 {[%clk 0:02:59]} 4. Nc3 {[%clk 0:02:58]}  Nge7 {[%clk 0:02:58]} 5. O-O {[%clk 0:02:57]}  a6 {[%clk 0:02:58]} 6. Bxc6 {[%clk 0:02:57]}  Nxc6 {[%clk 0:02:58]} 7. d4 {[%clk 0:02:58]}  cxd4 {[%clk 0:02:57]} 8. Nxd4 {[%clk 0:02:59]}  Be7 {[%clk 0:02:57]} 9. Nf5 {[%clk 0:02:56]}  exf5 {[%clk 0:02:51]} 10. exf5 {[%clk 0:02:57]}  O-O {[%clk 0:02:38]} 11. Nd5 {[%clk 0:02:46]}  d6 {[%clk 0:02:01]} 12. g4 {[%clk 0:02:37]}  Bf6 {[%clk 0:01:22]} 13. Be3 {[%clk 0:02:26]}  b5 {[%clk 0:00:48]} 14. f4 {[%clk 0:02:09]}  h6 {[%clk 0:00:47]} 15. Qf3 {[%clk 0:01:56]}  Bb7 {[%clk 0:00:44]} 16. Qg3 {[%clk 0:01:51]}  Nd4 {[%clk 0:00:41]} 17. Nc3 {[%clk 0:01:43]}  Nxc2 {[%clk 0:00:31]} 18. g5 {[%clk 0:01:28]}  hxg5 {[%clk 0:00:26]} 19. fxg5 {[%clk 0:01:27]}  Be5 {[%clk 0:00:21]} 20. Qh3 {[%clk 0:01:14]}  Nxe3 {[%clk 0:00:20]} 21. Qxe3 {[%clk 0:01:06]}  g6 {[%clk 0:00:18]} 22. Rad1 {[%clk 0:00:58]}  Re8 {[%clk 0:00:15]} 23. Qf2 {[%clk 0:00:43]}  Qxg5+ {[%clk 0:00:14]} 0-1


[Site "https://www.chess.com"]

[Event "Titled Tuesday Blitz March 21 Early 2023"]
[White "Manon-og, Ramon Jr."]
[Black "lluiss"]
[WhiteFideId "5200776"]
[WhiteElo "2329"]
[BlackElo "2160"]
[Result "1-0"]
[Round "06"]
[TimeControl "180+2"]
[Date "2023.03.21"]
[WhiteClock "0:01:00"]
[BlackClock "0:00:01"]

1. e4 {[%clk 0:02:55]}  c5 {[%clk 0:02:59]} 2. Nf3 {[%clk 0:02:48]}  d6 {[%clk 0:02:59]} 3. Bb5+ {[%clk 0:02:48]}  Nd7 {[%clk 0:02:58]} 4. a4 {[%clk 0:02:47]}  Nf6 {[%clk 0:02:50]} 5. Nc3 {[%clk 0:02:46]}  g6 {[%clk 0:02:47]} 6. O-O {[%clk 0:02:37]}  Bg7 {[%clk 0:02:47]} 7. d4 {[%clk 0:02:36]}  cxd4 {[%clk 0:02:47]} 8. Nxd4 {[%clk 0:02:37]}  O-O {[%clk 0:02:47]} 9. Bg5 {[%clk 0:02:28]}  h6 {[%clk 0:02:45]} 10. Bh4 {[%clk 0:02:27]}  Ne5 {[%clk 0:02:38]} 11. h3 {[%clk 0:02:18]}  a6 {[%clk 0:02:37]} 12. Be2 {[%clk 0:02:16]}  Nc6 {[%clk 0:01:49]} 13. Nxc6 {[%clk 0:02:14]}  bxc6 {[%clk 0:01:48]} 14. Qd2 {[%clk 0:02:14]}  Rb8 {[%clk 0:01:46]} 15. Rab1 {[%clk 0:02:13]}  Kh7 {[%clk 0:01:44]} 16. f4 {[%clk 0:02:10]}  Nd7 {[%clk 0:01:18]} 17. Bc4 {[%clk 0:02:05]}  Nb6 {[%clk 0:00:59]} 18. Bb3 {[%clk 0:02:01]}  c5 {[%clk 0:00:52]} 19. Nd5 {[%clk 0:01:50]}  c4 {[%clk 0:00:39]} 20. Bxe7 {[%clk 0:01:45]}  Nxd5 {[%clk 0:00:25]} 21. Bxd8 {[%clk 0:01:39]}  Rxd8 {[%clk 0:00:26]} 22. Qxd5 {[%clk 0:01:29]}  Be6 {[%clk 0:00:23]} 23. Qa5 {[%clk 0:01:25]}  cxb3 {[%clk 0:00:23]} 24. c3 {[%clk 0:01:22]}  Bc4 {[%clk 0:00:18]} 25. Rfd1 {[%clk 0:01:20]}  Rbc8 {[%clk 0:00:13]} 26. e5 {[%clk 0:01:17]}  Bf8 {[%clk 0:00:09]} 27. Rd4 {[%clk 0:01:14]}  d5 {[%clk 0:00:05]} 28. Rd2 {[%clk 0:01:13]}  Bc5+ {[%clk 0:00:05]} 29. Kh2 {[%clk 0:01:13]}  Rd7 {[%clk 0:00:03]} 30. Rbd1 {[%clk 0:01:11]}  Rc6 {[%clk 0:00:02]} 31. f5 {[%clk 0:01:04]}  gxf5 {[%clk 0:00:01]} 32. g4 {[%clk 0:01:00]}  fxg4 {[%clk 0:00:01]} 33. hxg4 {[%clk 0:01:00]}  Rg6 {[%clk 0:00:01]} 34. Kh3 {[%clk 0:01:00]} 1-0


[Site "https://www.chess.com"]

[Event "Titled Tuesday Blitz March 21 Early 2023"]
[White "Botez, Alexandra"]
[Black "Singgih, Diajeng Theresa"]
[WhiteFideId "2603365"]
[BlackFideId "7104391"]
[WhiteElo "2059"]
[BlackElo "1891"]
[Result "1-0"]
[Round "06"]
[TimeControl "180+2"]
[Date "2023.03.21"]
[WhiteClock "0:00:01"]
[BlackClock "0:00:03"]

1. d4 {[%clk 0:03:00]}  d5 {[%clk 0:02:49]} 2. c4 {[%clk 0:02:57]}  e6 {[%clk 0:02:48]} 3. Nf3 {[%clk 0:02:55]}  Nf6 {[%clk 0:02:45]} 4. g3 {[%clk 0:02:54]}  Be7 {[%clk 0:02:33]} 5. Bg2 {[%clk 0:02:53]}  O-O {[%clk 0:02:31]} 6. O-O {[%clk 0:02:43]}  b6 {[%clk 0:02:30]} 7. Qc2 {[%clk 0:02:43]}  Bb7 {[%clk 0:02:29]} 8. Nbd2 {[%clk 0:02:43]}  Ne4 {[%clk 0:02:29]} 9. Rd1 {[%clk 0:02:18]}  Nd7 {[%clk 0:02:25]} 10. Ne5 {[%clk 0:02:17]}  Ndf6 {[%clk 0:02:12]} 11. f3 {[%clk 0:02:13]}  Nxd2 {[%clk 0:02:09]} 12. Rxd2 {[%clk 0:02:09]}  c5 {[%clk 0:02:08]} 13. cxd5 {[%clk 0:01:45]}  cxd4 {[%clk 0:01:59]} 14. dxe6 {[%clk 0:01:43]}  fxe6 {[%clk 0:01:58]} 15. e4 {[%clk 0:01:25]}  Bc5 {[%clk 0:01:55]} 16. Nd3 {[%clk 0:01:25]}  Rc8 {[%clk 0:01:54]} 17. Qd1 {[%clk 0:01:25]}  Nd7 {[%clk 0:01:46]} 18. a3 {[%clk 0:01:24]}  a5 {[%clk 0:01:45]} 19. Rb1 {[%clk 0:01:24]}  b5 {[%clk 0:01:33]} 20. b4 {[%clk 0:01:24]}  axb4 {[%clk 0:01:33]} 21. axb4 {[%clk 0:01:24]}  Bb6 {[%clk 0:01:34]} 22. Qb3 {[%clk 0:01:13]}  Qe7 {[%clk 0:01:32]} 23. f4 {[%clk 0:00:59]}  Rc3 {[%clk 0:01:28]} 24. Qd1 {[%clk 0:00:55]}  Nf6 {[%clk 0:01:24]} 25. Bb2 {[%clk 0:00:55]}  Nxe4 {[%clk 0:00:52]} 26. Re2 {[%clk 0:00:29]}  Nd6 {[%clk 0:00:23]} 27. Bxb7 {[%clk 0:00:17]}  Qd7 {[%clk 0:00:23]} 28. Bxc3 {[%clk 0:00:14]}  dxc3+ {[%clk 0:00:23]} 29. Kf1 {[%clk 0:00:11]}  Qxb7 {[%clk 0:00:21]} 30. Rg2 {[%clk 0:00:06]}  Rc8 {[%clk 0:00:17]} 31. Rc1 {[%clk 0:00:06]}  Ne4 {[%clk 0:00:15]} 32. Qe2 {[%clk 0:00:05]}  Nd2+ {[%clk 0:00:11]} 33. Ke1 {[%clk 0:00:05]}  Qd5 {[%clk 0:00:09]} 34. h3 {[%clk 0:00:02]}  Nb3 {[%clk 0:00:05]} 35. Rc2 {[%clk 0:00:02]}  Nd4 {[%clk 0:00:04]} 36. Qd1 {[%clk 0:00:02]}  Nxc2+ {[%clk 0:00:03]} 37. Qxc2 {[%clk 0:00:03]}  Qe4+ {[%clk 0:00:03]} 38. Kd1 {[%clk 0:00:01]} 1-0


[Site "https://www.chess.com"]

[Event "Titled Tuesday Blitz March 21 Early 2023"]
[White "Hercegovac, Neven"]
[Black "Vargas, Mauricio"]
[WhiteFideId "2839135"]
[BlackFideId "4404572"]
[WhiteElo "2075"]
[BlackElo "2025"]
[Result "1-0"]
[Round "06"]
[TimeControl "180+2"]
[Date "2023.03.21"]
[WhiteClock "0:00:42"]
[BlackClock "0:00:02"]

1. d4 {[%clk 0:02:52]}  Nf6 {[%clk 0:02:31]} 2. c4 {[%clk 0:02:43]}  d6 {[%clk 0:02:31]} 3. Nf3 {[%clk 0:02:30]}  g6 {[%clk 0:02:31]} 4. Nc3 {[%clk 0:02:28]}  Bg7 {[%clk 0:02:31]} 5. e4 {[%clk 0:02:27]}  O-O {[%clk 0:02:31]} 6. Be2 {[%clk 0:02:15]}  c6 {[%clk 0:02:30]} 7. Be3 {[%clk 0:02:10]}  a6 {[%clk 0:02:30]} 8. O-O {[%clk 0:01:38]}  b5 {[%clk 0:02:30]} 9. h3 {[%clk 0:01:25]}  b4 {[%clk 0:02:07]} 10. Nb1 {[%clk 0:01:24]}  Nxe4 {[%clk 0:02:06]} 11. Nbd2 {[%clk 0:01:23]}  d5 {[%clk 0:01:44]} 12. Nxe4 {[%clk 0:01:18]}  dxe4 {[%clk 0:01:44]} 13. Nd2 {[%clk 0:01:17]}  f5 {[%clk 0:01:40]} 14. Nb3 {[%clk 0:01:13]}  Kh8 {[%clk 0:01:36]} 15. Bf4 {[%clk 0:01:11]}  Nd7 {[%clk 0:01:28]} 16. d5 {[%clk 0:01:09]}  cxd5 {[%clk 0:01:24]} 17. Qxd5 {[%clk 0:01:10]}  Rb8 {[%clk 0:01:20]} 18. Rfd1 {[%clk 0:01:07]}  Qe8 {[%clk 0:01:16]} 19. Bxb8 {[%clk 0:00:59]}  Nxb8 {[%clk 0:01:14]} 20. Nd4 {[%clk 0:00:58]}  e6 {[%clk 0:01:08]} 21. Qd6 {[%clk 0:00:56]}  Bd7 {[%clk 0:00:43]} 22. c5 {[%clk 0:00:51]}  a5 {[%clk 0:00:30]} 23. Rac1 {[%clk 0:00:46]}  Nc6 {[%clk 0:00:27]} 24. Nxc6 {[%clk 0:00:46]}  Bxc6 {[%clk 0:00:27]} 25. Bc4 {[%clk 0:00:42]}  Bxb2 {[%clk 0:00:24]} 26. Rb1 {[%clk 0:00:42]}  Bc3 {[%clk 0:00:17]} 27. Bxe6 {[%clk 0:00:42]}  Rf6 {[%clk 0:00:10]} 28. Bd7 {[%clk 0:00:40]}  Rxd6 {[%clk 0:00:10]} 29. Bxe8 {[%clk 0:00:40]}  Rxd1+ {[%clk 0:00:01]} 30. Rxd1 {[%clk 0:00:41]}  Bxe8 {[%clk 0:00:02]} 31. Rd8 {[%clk 0:00:42]} 1-0


[Site "https://www.chess.com"]

[Event "Titled Tuesday Blitz March 21 Early 2023"]
[White "Prado, Alexandra"]
[Black "Abrosimov, Vladimir"]
[WhiteFideId "3301346"]
[BlackFideId "4166892"]
[WhiteElo "1759"]
[BlackElo "2336"]
[Result "0-1"]
[Round "06"]
[TimeControl "180+2"]
[Date "2023.03.21"]
[WhiteClock "0:00:05"]
[BlackClock "0:00:52"]

1. e4 {[%clk 0:02:56]}  c5 {[%clk 0:03:00]} 2. Nf3 {[%clk 0:02:52]}  d6 {[%clk 0:03:00]} 3. c3 {[%clk 0:02:51]}  Nf6 {[%clk 0:03:00]} 4. Be2 {[%clk 0:02:51]}  Bd7 {[%clk 0:02:59]} 5. d3 {[%clk 0:02:37]}  e6 {[%clk 0:03:00]} 6. O-O {[%clk 0:02:37]}  Be7 {[%clk 0:02:59]} 7. a4 {[%clk 0:02:24]}  O-O {[%clk 0:02:59]} 8. Na3 {[%clk 0:02:22]}  a6 {[%clk 0:02:59]} 9. Nc4 {[%clk 0:02:19]}  Nc6 {[%clk 0:02:57]} 10. e5 {[%clk 0:02:17]}  dxe5 {[%clk 0:02:57]} 11. Ncxe5 {[%clk 0:02:15]}  Nxe5 {[%clk 0:02:54]} 12. Nxe5 {[%clk 0:02:16]}  Qc7 {[%clk 0:02:53]} 13. Bf4 {[%clk 0:02:00]}  Bd6 {[%clk 0:02:53]} 14. d4 {[%clk 0:02:00]}  cxd4 {[%clk 0:02:49]} 15. cxd4 {[%clk 0:02:01]}  Nd5 {[%clk 0:02:45]} 16. Bg3 {[%clk 0:02:00]}  Rac8 {[%clk 0:02:18]} 17. Bd3 {[%clk 0:01:52]}  f6 {[%clk 0:02:12]} 18. Qh5 {[%clk 0:01:40]}  f5 {[%clk 0:01:39]} 19. Rac1 {[%clk 0:01:20]}  Qd8 {[%clk 0:01:15]} 20. Rxc8 {[%clk 0:00:33]}  Bxc8 {[%clk 0:01:10]} 21. Bh4 {[%clk 0:00:25]}  Nf6 {[%clk 0:01:08]} 22. Qf3 {[%clk 0:00:18]}  Qc7 {[%clk 0:00:57]} 23. Bg5 {[%clk 0:00:16]}  Bxe5 {[%clk 0:00:55]} 24. dxe5 {[%clk 0:00:16]}  Qxe5 {[%clk 0:00:55]} 25. b3 {[%clk 0:00:05]}  Bd7 {[%clk 0:00:52]} 0-1


[Site "https://www.chess.com"]